fUST/lending_fUST_20250801
["ID","MTS","AMOUNT","RATE_DAILY","PERIOD"]
[376437878,1753977691631,200.0,0.00025699,120]
[376437882,1753977888617,1206.97507725,0.00018038,2]
[376437883,1753977888640,23693.02492275,0.00018038,2]
[376437885,1753977939311,347.545389,0.00013699,2]
[376437961,1753978232800,-474.84784558,0.000189,2]
[376437962,1753978232810,-560.82000359,0.000189,2]
[376437963,1753978232900,-37.97227977,0.000189,2]
[376437965,1753978232910,-160.0,0.00018945,2]
[376437967,1753978232920,-120.86772023,0.00018966,2]
[376438741,1753978240712,-179.13227977,0.00018966,2]
[376438743,1753978240723,-1200.0,0.00018966,2]
[376438745,1753978240732,-30000.0,0.00018967,2]
[376438747,1753978240742,-2454.01,0.00019,2]
[376438749,1753978240752,-8659.54,0.00019,2]
[376438750,1753978240762,-853.05959144,0.00019078,2]
[376438753,1753978240772,-327.0,0.00019107,2]
[376438755,1753978240782,-853.05959142,0.00019147,2]
[376438757,1753978240792,-318.84,0.00019155,2]
[376438759,1753978240802,-480.42,0.00019166,2]
[376438761,1753978240811,-13399.93853737,0.00019166,2]
[376438763,1753978240824,-3478.56362719,0.00019166,2]
[376439085,1753978243368,-8121.49783544,0.00019166,2]
[376439087,1753978243378,-5897.99031185,0.00019166,2]
[376439089,1753978243388,-151.0,0.00019166,2]
[376439091,1753978243398,-500.0,0.00019166,2]
[376439093,1753978243408,-151.0,0.00019166,2]
[376439095,1753978243418,-500.0,0.00019166,2]
[376439097,1753978243427,-151.0,0.00019166,2]
[376439099,1753978243437,-500.0,0.00019166,2]
[376439101,1753978243448,-151.0,0.00019166,2]
[376439104,1753978243462,-500.0,0.00019166,2]
[376439106,1753978243472,-151.0,0.00019166,2]
[376439108,1753978243481,-151.0,0.00019166,2]
[376439110,1753978243491,-151.0,0.00019166,2]
[376439112,1753978243501,-500.0,0.00019166,2]
[376439113,1753978243511,-151.0,0.00019166,2]
[376439116,1753978243522,-151.0,0.00019166,2]
[376439117,1753978243531,-151.0,0.00019166,2]
[376439119,1753978243541,-500.0,0.00019166,2]
[376439121,1753978243551,-151.0,0.00019166,2]
[376439123,1753978243561,-151.0,0.00019166,2]
[376439125,1753978243571,-151.0,0.00019166,2]
[376439127,1753978243580,-500.0,0.00019166,2]
[376439129,1753978243589,-151.0,0.00019166,2]
[376439131,1753978243602,-151.0,0.00019166,2]
[376439133,1753978243611,-151.0,0.00019166,2]
[376439135,1753978243620,-500.0,0.00019166,2]
[376439137,1753978243630,-151.0,0.00019166,2]
[376439139,1753978243639,-151.0,0.00019166,2]
[376439141,1753978243648,-151.0,0.00019166,2]
[376439143,1753978243658,-500.0,0.00019166,2]
[376439145,1753978243667,-151.0,0.00019166,2]
[376439147,1753978243676,-151.0,0.00019166,2]
[376439148,1753978243686,-151.0,0.00019166,2]
[376439150,1753978243695,-500.0,0.00019166,2]
[376439152,1753978243704,-151.0,0.00019166,2]
[376439154,1753978243714,-151.0,0.00019166,2]
[376439156,1753978243725,-151.0,0.00019166,2]
[376439158,1753978243735,-500.0,0.00019166,2]
[376439160,1753978243744,-151.0,0.00019166,2]
[376439162,1753978243754,-151.0,0.00019166,2]
[376439164,1753978243764,-500.0,0.00019166,2]
[376439166,1753978243773,-151.0,0.00019166,2]
[376439168,1753978243783,-151.0,0.00019166,2]
[376439170,1753978243792,-151.0,0.00019166,2]
[376439172,1753978243802,-500.0,0.00019166,2]
[376439174,1753978243812,-151.0,0.00019166,2]
[376439176,1753978243822,-151.0,0.00019166,2]
[376439178,1753978243832,-151.0,0.00019166,2]
[376439180,1753978243842,-228.45413923,0.00019166,2]
[376439182,1753978243851,-151.0,0.00019166,2]
[376439184,1753978243861,-151.0,0.00019166,2]
[376439186,1753978243870,-151.0,0.00019166,2]
[376439187,1753978243880,-151.0,0.00019166,2]
[376439189,1753978243890,-151.0,0.00019166,2]
[376439191,1753978243900,-151.0,0.00019166,2]
[376439193,1753978243910,-151.0,0.00019166,2]
[376439195,1753978243919,-278.72920567,0.00019166,2]
[376439197,1753978243928,-154.24,0.00019168,3]
[376439199,1753978243938,-462.74,0.00019168,3]
[376439201,1753978243947,-97752.39791617,0.0001917,2]
[376439218,1753978244140,-770.1099154,0.0001917,2]
[376439219,1753978244152,-2439.32849533,0.0001917,2]
[376439427,1753978246308,-15539.19818156,0.0001917,2]
[376440271,1753978277945,789.49727522,0.00018479,2]
[376440272,1753978279809,3154.83111177,0.00018479,2]
[376440273,1753978509907,166.891778,0.00018178,2]
[376440274,1753978553527,1848.20952326,0.00018772,2]
[376440275,1753978553552,3151.79047674,0.00018772,2]
[376440276,1753978570444,3742.421022,0.00018772,2]
[376440278,1753978861322,23105.78850126,0.00017993,2]
[376440279,1753978861345,1794.21149874,0.00017993,2]
[376440280,1753978937670,346.255442,0.00013699,2]
[376440500,1753979378383,695.62,0.0001901,6]
[376440538,1753979432955,-300.0,0.00018779,2]
[376440539,1753979432965,-300.0,0.00018779,2]
[376440540,1753979432974,-250.98691727,0.00018779,2]
[376440541,1753979432987,-949.01308273,0.00018779,2]
[376440542,1753979432996,-2101.67986317,0.0001878,2]
[376440543,1753979433017,-679.03551762,0.0001878,2]
[376440544,1753979433029,-731.82974463,0.0001878,2]
[376440545,1753979433072,-1099.38138641,0.0001878,2]
[376440564,1753979438679,-4942.24154657,0.0001878,2]
[376440566,1753979438691,-567.95000424,0.0001878,2]
[376440594,1753979438953,-39258.81007261,0.0001878,2]
[376440596,1753979438962,-871.19245054,0.000189,2]
[376440598,1753979438971,-653.33814598,0.000189,2]
[376440600,1753979438980,-6972.08695705,0.000189,2]
[376440602,1753979438990,-871.19245051,0.00018945,2]
[376440604,1753979439000,-500.0,0.00018973,2]
[376440606,1753979439009,-460.5076104,0.00018973,2]
[376440608,1753979439019,-500.0,0.00018973,2]
[376440610,1753979439032,-500.0,0.00018973,2]
[376440612,1753979439041,-500.0,0.00018973,2]
[376440615,1753979439051,-500.0,0.00018973,2]
[376440618,1753979439060,-500.0,0.00018973,2]
[376440622,1753979439070,-500.0,0.00018973,2]
[376440626,1753979439080,-265.21865389,0.00018973,2]
[376440628,1753979439090,-500.0,0.00018973,2]
[376440630,1753979439099,-500.0,0.00018973,2]
[376440632,1753979439107,-500.0,0.00018973,2]
[376440634,1753979439116,-500.0,0.00018973,2]
[376440636,1753979439126,-151.0,0.00018989,2]
[376440638,1753979439135,-500.0,0.00018989,2]
[376440640,1753979439145,-151.0,0.00018989,2]
[376440642,1753979439155,-500.0,0.00018989,2]
[376440644,1753979439164,-151.0,0.00018989,2]
[376440646,1753979439173,-500.0,0.00018989,2]
[376440648,1753979439184,-151.0,0.00018989,2]
[376440650,1753979439196,-500.0,0.00018989,2]
[376440652,1753979439205,-151.0,0.00018989,2]
[376440654,1753979439215,-500.0,0.00018989,2]
[376440656,1753979439224,-151.0,0.00018989,2]
[376440658,1753979439234,-500.0,0.00018989,2]
[376440660,1753979439243,-151.0,0.00018989,2]
[376440662,1753979439253,-151.0,0.00018989,2]
[376440665,1753979439263,-151.0,0.00018989,2]
[376440667,1753979439274,-500.0,0.00018989,2]
[376440669,1753979439287,-151.0,0.00018989,2]
[376440670,1753979439303,-151.0,0.00018989,2]
[376440673,1753979439312,-151.0,0.00018989,2]
[376440675,1753979439321,-500.0,0.00018989,2]
[376440676,1753979439331,-151.0,0.00018989,2]
[376440678,1753979439340,-151.0,0.00018989,2]
[376440679,1753979439349,-151.0,0.00018989,2]
[376440680,1753979439359,-500.0,0.00018989,2]
[376440681,1753979439368,-151.0,0.00018989,2]
[376440682,1753979439378,-151.0,0.00018989,2]
[376440683,1753979439387,-151.0,0.00018989,2]
[376440684,1753979439397,-151.0,0.00018989,2]
[376440685,1753979439406,-151.0,0.00018989,2]
[376440686,1753979439415,-500.0,0.00018989,2]
[376440687,1753979439425,-151.0,0.00018989,2]
[376440688,1753979439434,-151.0,0.00018989,2]
[376440689,1753979439443,-151.0,0.00018989,2]
[376440690,1753979439452,-500.0,0.00018989,2]
[376440691,1753979439461,-151.0,0.00018989,2]
[376440692,1753979439470,-151.0,0.00018989,2]
[376440693,1753979439479,-500.0,0.00018989,2]
[376440694,1753979439488,-151.0,0.00018989,2]
[376440695,1753979439497,-151.0,0.00018989,2]
[376440696,1753979439507,-500.0,0.00018989,2]
[376440697,1753979439516,-151.0,0.00018989,2]
[376440698,1753979439527,-151.0,0.00018989,2]
[376440699,1753979439537,-228.45413923,0.00018989,2]
[376440700,1753979439547,-151.0,0.00018989,2]
[376440701,1753979439557,-151.0,0.00018989,2]
[376440702,1753979439566,-151.0,0.00018989,2]
[376440703,1753979439575,-151.0,0.00018989,2]
[376440704,1753979439585,-151.0,0.00018989,2]
[376440705,1753979439594,-151.0,0.00018989,2]
[376440706,1753979439603,-151.0,0.00018989,2]
[376440707,1753979439613,-278.72920567,0.00018989,2]
[376440708,1753979439622,-151.0,0.00018989,2]
[376440709,1753979439635,-151.0,0.00018989,2]
[376440710,1753979439646,-151.0,0.00018989,2]
[376440711,1753979439655,-151.0,0.00018989,2]
[376440712,1753979439666,-151.0,0.00018989,2]
[376440713,1753979439675,-151.0,0.00018989,2]
[376440714,1753979439685,-151.0,0.00018989,2]
[376440715,1753979439695,-871.19245051,0.00018989,2]
[376440716,1753979439705,-376.16,0.0001899,3]
[376440717,1753979439714,-188.08,0.0001899,3]
[376440718,1753979439723,-564.26,0.0001899,3]
[376440719,1753979439732,-6230.41907255,0.00018998,2]
[376440720,1753979439742,-500.0,0.00018999,2]
[376440722,1753979439751,-418.20287656,0.00018999,2]
[376440723,1753979439760,-500.0,0.00018999,2]
[376440724,1753979439769,-500.0,0.00018999,2]
[376440725,1753979439779,-500.0,0.00018999,2]
[376440726,1753979439789,-500.0,0.00018999,2]
[376440727,1753979439798,-277.59729617,0.00018999,2]
[376440728,1753979439807,-500.0,0.00018999,2]
[376440729,1753979439816,-500.0,0.00018999,2]
[376440730,1753979439825,-500.0,0.00018999,2]
[376440731,1753979439835,-500.0,0.00018999,2]
[376440732,1753979439844,-500.0,0.00018999,2]
[376440733,1753979439854,-500.0,0.00018999,2]
[376440734,1753979439864,-500.0,0.00018999,2]
[376440735,1753979439874,-500.0,0.00018999,2]
[376440736,1753979439884,-500.0,0.00018999,2]
[376440737,1753979439894,-500.0,0.00018999,2]
[376440738,1753979439903,-500.0,0.00018999,2]
[376440739,1753979439912,-570.33660531,0.00018999,2]
[376440740,1753979439921,-500.0,0.00018999,2]
[376440741,1753979439930,-500.0,0.00018999,2]
[376440742,1753979439939,-370.35387834,0.00018999,2]
[376440743,1753979439948,-499.67553677,0.00018999,2]
[376440744,1753979439957,-500.0,0.00018999,2]
[376440745,1753979439966,-500.0,0.00018999,2]
[376440746,1753979439975,-512.22683062,0.00018999,2]
[376440747,1753979439985,-500.0,0.00018999,2]
[376440748,1753979439994,-500.0,0.00018999,2]
[376440749,1753979440003,-500.0,0.00018999,2]
[376440750,1753979440012,-500.0,0.00018999,2]
[376440751,1753979440021,-500.0,0.00018999,2]
[376440752,1753979440033,-500.0,0.00018999,2]
[376440753,1753979440042,-500.0,0.00018999,2]
[376440754,1753979440052,-500.0,0.00018999,2]
[376440755,1753979440062,-500.0,0.00018999,2]
[376440757,1753979440071,-500.0,0.00018999,2]
[376440759,1753979440080,-500.0,0.00018999,2]
[376440761,1753979440090,-500.0,0.00018999,2]
[376440763,1753979440100,-500.0,0.00018999,2]
[376440765,1753979440109,-500.0,0.00018999,2]
[376440767,1753979440118,-312.42855019,0.00018999,2]
[376440769,1753979440128,-500.0,0.00018999,2]
[376440771,1753979440137,-500.0,0.00018999,2]
[376440773,1753979440146,-500.0,0.00018999,2]
[376440775,1753979440156,-500.0,0.00018999,2]
[376440777,1753979440165,-500.0,0.00018999,2]
[376440779,1753979440174,-500.0,0.00018999,2]
[376440780,1753979440184,-423.68392042,0.00018999,2]
[376440783,1753979440193,-500.0,0.00018999,2]
[376440786,1753979440210,-500.0,0.00018999,2]
[376440788,1753979440223,-500.0,0.00018999,2]
[376440790,1753979440232,-500.0,0.00018999,2]
[376440792,1753979440242,-500.0,0.00018999,2]
[376440794,1753979440252,-500.0,0.00018999,2]
[376440796,1753979440261,-500.0,0.00018999,2]
[376440798,1753979440271,-500.0,0.00018999,2]
[376440800,1753979440282,-500.0,0.00018999,2]
[376440802,1753979440292,-500.0,0.00018999,2]
[376440804,1753979440302,-500.0,0.00018999,2]
[376440806,1753979440312,-500.0,0.00018999,2]
[376440808,1753979440321,-500.0,0.00018999,2]
[376440810,1753979440331,-500.0,0.00018999,2]
[376440812,1753979440340,-500.0,0.00018999,2]
[376440815,1753979440351,-500.0,0.00018999,2]
[376440816,1753979440360,-500.0,0.00018999,2]
[376440818,1753979440369,-500.0,0.00018999,2]
[376440820,1753979440379,-500.0,0.00018999,2]
[376440822,1753979440389,-197.72140066,0.00018999,2]
[376440824,1753979440399,-595.80024271,0.00018999,2]
[376440826,1753979440408,-595.80024271,0.00018999,2]
[376440828,1753979440418,-595.80024271,0.00018999,2]
[376440830,1753979440428,-595.80024271,0.00018999,2]
[376440832,1753979440437,-595.80024271,0.00018999,2]
[376440834,1753979440447,-595.80024271,0.00018999,2]
[376440836,1753979440457,-595.80024271,0.00018999,2]
[376440838,1753979440467,-619.51220684,0.00018999,2]
[376440840,1753979440476,-595.80024271,0.00018999,2]
[376440842,1753979440486,-595.80024271,0.00018999,2]
[376440866,1753979440710,-595.80024271,0.00018999,2]
[376440868,1753979440722,-595.80024271,0.00018999,2]
[376440870,1753979440735,-595.80024271,0.00018999,2]
[376440872,1753979440745,-595.80024271,0.00018999,2]
[376440874,1753979440759,-595.80024271,0.00018999,2]
[376440876,1753979440769,-595.80024271,0.00018999,2]
[376440878,1753979440779,-595.80024271,0.00018999,2]
[376440880,1753979440789,-595.80024271,0.00018999,2]
[376440882,1753979440799,-595.80024271,0.00018999,2]
[376440884,1753979440809,-595.80024271,0.00018999,2]
[376440886,1753979440818,-625.59025484,0.00018999,2]
[376440888,1753979440828,-625.59025484,0.00018999,2]
[376440890,1753979440838,-625.59025484,0.00018999,2]
[376440892,1753979440847,-625.59025484,0.00018999,2]
[376440894,1753979440856,-625.59025484,0.00018999,2]
[376440896,1753979440866,-625.59025484,0.00018999,2]
[376440898,1753979440875,-625.59025484,0.00018999,2]
[376440900,1753979440885,-625.59025484,0.00018999,2]
[376440902,1753979440895,-606.7198307,0.00019,2]
[376440904,1753979440904,-431202.4,0.00019,2]
[376440906,1753979440914,-83650.0,0.00019,2]
[376440908,1753979440924,-151.0,0.00019,2]
[376440911,1753979440933,-151.0,0.00019,2]
[376440912,1753979440943,-151.0,0.00019,2]
[376440914,1753979440952,-151.0,0.00019,2]
[376440916,1753979440962,-151.0,0.00019,2]
[376440918,1753979440971,-151.0,0.00019,2]
[376440921,1753979440982,-151.0,0.00019,2]
[376440923,1753979440991,-266.330823,0.00019,2]
[376440925,1753979441000,-266.330823,0.00019,2]
[376440927,1753979441010,-151.0,0.00019,2]
[376440929,1753979441019,-151.0,0.00019,2]
[376440931,1753979441030,-151.0,0.00019,2]
[376440933,1753979441041,-151.0,0.00019,2]
[376440935,1753979441050,-151.0,0.00019,2]
[376440937,1753979441060,-320.99208,0.00019,2]
[376440939,1753979441069,-320.99208,0.00019,2]
[376440941,1753979441079,-320.99208,0.00019,2]
[376440942,1753979441089,-320.99208,0.00019,2]
[376440944,1753979441099,-871.19245051,0.00019034,2]
[376440946,1753979441109,-6972.08695689,0.00019038,2]
[376440948,1753979441118,-560.877167,0.00019047,2]
[376440950,1753979441128,-112684.72113849,0.00019067,2]
[376440952,1753979441138,-151.0,0.00019067,2]
[376440954,1753979441147,-151.0,0.00019067,2]
[376440956,1753979441157,-151.0,0.00019067,2]
[376440958,1753979441166,-151.0,0.00019067,2]
[376440960,1753979441176,-151.0,0.00019067,2]
[376440962,1753979441186,-266.330823,0.00019067,2]
[376440965,1753979441195,-266.330823,0.00019067,2]
[376440967,1753979441206,-151.0,0.00019067,2]
[376440969,1753979441218,-151.0,0.00019067,2]
[376440971,1753979441227,-151.0,0.00019067,2]
[376440973,1753979441237,-320.99208,0.00019067,2]
[376440975,1753979441247,-320.99208,0.00019067,2]
[376440977,1753979441256,-172.59293609,0.00019078,2]
[376440979,1753979441266,-871.19245051,0.00019078,2]
[376440981,1753979441278,-200.0,0.00019155,15]
[376440983,1753979441288,-200.0,0.00019155,15]
[376440985,1753979441297,-200.0,0.00019155,15]
[376440987,1753979441307,-200.0,0.00019155,15]
[376440989,1753979441317,-384.336,0.00019166,2]
[376440991,1753979441326,-661748.70329722,0.0001917,2]
[376440993,1753979441343,-125436.04940836,0.0001917,2]
[376440996,1753979441355,-326.49441036,0.0001917,2]
[376441001,1753979441453,-3787.30000005,0.0001917,2]
[376441002,1753979441471,-921.58053516,0.0001917,2]
[376442998,1753979659451,166.8917784,0.00018107,2]
[376443002,1753979965007,345.553675,0.00013699,2]
[376443003,1753980056154,24900.0,0.00018112,2]
[376443005,1753980191742,640.9115329,0.00018773,2]
[376443006,1753980266378,327.0,0.00018648,2]
[376443008,1753980312331,327.0,0.00018727,2]
[376443009,1753980340477,327.0,0.0001877,2]
[376443030,1753980632886,-747.0130761,0.000188,2]
[376443032,1753980632895,-454.9658173,0.00018871,2]
[376443033,1753980632905,-151.0,0.00018877,2]
[376443035,1753980632914,-151.0,0.00018877,2]
[376443036,1753980632924,-151.0,0.00018877,2]
[376443038,1753980632937,-500.0,0.00018877,2]
[376443040,1753980632950,-500.0,0.00018877,2]
[376443042,1753980632959,-500.0,0.00018877,2]
[376443044,1753980632969,-61.28418857,0.00018877,2]
[376443046,1753980632982,-438.71581143,0.00018877,2]
[376443048,1753980632992,-415.86202394,0.00018877,2]
[376443137,1753980638820,-84.13797606,0.00018877,2]
[376443139,1753980638830,-151.0,0.00018877,2]
[376443141,1753980638840,-151.0,0.00018877,2]
[376443143,1753980638849,-151.0,0.00018877,2]
[376443145,1753980638859,-151.0,0.00018877,2]
[376443147,1753980638869,-228.45413923,0.00018877,2]
[376443149,1753980638879,-151.0,0.00018877,2]
[376443151,1753980638888,-151.0,0.00018877,2]
[376443153,1753980638898,-151.0,0.00018877,2]
[376443155,1753980638907,-151.0,0.00018877,2]
[376443156,1753980638916,-151.0,0.00018877,2]
[376443158,1753980638926,-151.0,0.00018877,2]
[376443160,1753980638936,-151.0,0.00018877,2]
[376443162,1753980638948,-151.0,0.00018877,2]
[376443164,1753980638958,-151.0,0.00018877,2]
[376443166,1753980638968,-300.0,0.00018887,2]
[376443169,1753980638979,-300.0,0.00018887,2]
[376443171,1753980638988,-1200.0,0.00018887,2]
[376443173,1753980639000,-1360.04788471,0.00018888,2]
[376443177,1753980639029,-1474.14023591,0.00018888,2]
[376443179,1753980639042,-662.35476838,0.00018888,2]
[376443181,1753980639053,-7562.15499518,0.00018888,2]
[376443292,1753980641107,-13085.68878738,0.00018888,2]
[376443294,1753980641121,-5800.18069606,0.00018888,2]
[376443297,1753980641135,-55.43263238,0.00018888,2]
[376443299,1753980641144,-435.55876399,0.000189,2]
[376443301,1753980641153,-327.0,0.00018964,2]
[376443303,1753980641163,-297.272133,0.00019,2]
[376443305,1753980641172,-297.272133,0.00019,2]
[376443307,1753980641182,-297.272133,0.00019,2]
[376443309,1753980641191,-297.272133,0.00019,2]
[376443311,1753980641200,-151.0,0.00019,2]
[376443313,1753980641209,-151.0,0.00019,2]
[376443315,1753980641217,-152.299131,0.00019,2]
[376443317,1753980641227,-151.0,0.00019,2]
[376443319,1753980641236,-151.0,0.00019,2]
[376443321,1753980641245,-848.415781,0.00019,2]
[376443323,1753980641257,-848.415781,0.00019,2]
[376443325,1753980641266,-848.415781,0.00019,2]
[376443327,1753980641276,-848.415781,0.00019,2]
[376443329,1753980641285,-452.488069,0.00019,2]
[376443331,1753980641294,-452.488069,0.00019,2]
[376443333,1753980641303,-452.488069,0.00019,2]
[376443335,1753980641312,-452.488069,0.00019,2]
[376443337,1753980641322,-1132.76636041,0.00019,2]
[376443339,1753980641331,-373.918111,0.00019047,2]
[376443341,1753980641340,-500.0,0.00019059,2]
[376443343,1753980641349,-327.0,0.00019059,2]
[376443345,1753980641358,-327.0,0.00019063,2]
[376443347,1753980641367,-297.272133,0.00019067,2]
[376443349,1753980641377,-297.272133,0.00019067,2]
[376443351,1753980641386,-151.0,0.00019067,2]
[376443353,1753980641396,-848.415781,0.00019067,2]
[376443355,1753980641405,-848.415781,0.00019067,2]
[376443357,1753980641415,-452.488069,0.00019067,2]
[376443359,1753980641424,-452.488069,0.00019067,2]
[376443362,1753980641433,-327.0,0.00019074,2]
[376443365,1753980641442,-327.0,0.00019075,2]
[376443367,1753980641451,-327.0,0.00019076,2]
[376443369,1753980641460,-327.0,0.0001913,2]
[376443371,1753980641470,-307.469,0.00019155,2]
[376443373,1753980641479,-327.0,0.00019163,2]
[376443375,1753980641488,-151.0,0.00019168,3]
[376443377,1753980641497,-151.15841428,0.00019168,3]
[376443379,1753980641508,-151.0,0.00019168,3]
[376443381,1753980641518,-151.0,0.00019168,3]
[376443383,1753980641527,-151.0,0.00019168,3]
[376443385,1753980641536,-151.0,0.00019168,3]
[376443387,1753980641545,-725.0,0.00019168,3]
[376443389,1753980641554,-151.0,0.00019168,3]
[376443391,1753980641563,-151.0,0.00019168,3]
[376443393,1753980641572,-188.08,0.00019168,3]
[376443395,1753980641581,-564.24,0.00019168,3]
[376443397,1753980641590,-583.54,0.00019168,3]
[376443399,1753980641600,-194.51,0.00019168,3]
[376443401,1753980641608,-583.57,0.00019168,3]
[376443403,1753980641617,-389.03,0.00019168,3]
[376443405,1753980641628,-194.51,0.00019168,3]
[376443407,1753980641637,-103.19780173,0.00019168,3]
[376443636,1753980643571,-480.38219827,0.00019168,3]
[376443638,1753980643580,-25.72072809,0.0001917,2]
[376443644,1753980643625,-1814.73052509,0.0001917,2]
[376443958,1753980646761,-2124.03142117,0.0001917,2]
[376443962,1753980646790,-15422.9176,0.0001917,2]
[376443964,1753980646802,-269513.94287163,0.0001917,2]
[376445386,1753980880765,348.0,0.00026582,60]
[376445387,1753980953764,356.099461,0.00013699,2]
[376445390,1753981040221,5000.0,0.0001879,2]
[376445391,1753981085611,24900.0,0.00018114,2]
[376445392,1753981136000,1000.0,0.00017,2]
[376446007,1753981838968,-325.76237576,0.000189,2]
[376446013,1753981839025,-65.76398542,0.000189,2]
[376446015,1753981839035,-800.0,0.00018911,2]
[376446017,1753981839046,-800.0,0.00018922,2]
[376446019,1753981839055,-800.0,0.00018925,2]
[376446021,1753981839064,-800.0,0.00018933,2]
[376446023,1753981839074,-463.25109401,0.00018941,2]
[376446025,1753981839084,-800.0,0.00018956,2]
[376446028,1753981839094,-800.0,0.00018965,2]
[376446030,1753981839104,-800.0,0.00019007,2]
[376446031,1753981839113,-800.0,0.0001903,2]
[376446033,1753981839122,-160.0,0.00019041,2]
[376446036,1753981839132,-336.417482,0.00019047,2]
[376446038,1753981839141,-300.0,0.00019076,2]
[376446039,1753981839150,-1200.0,0.00019076,2]
[376446041,1753981839160,-4517.54925999,0.00019077,2]
[376446044,1753981839170,-800.0,0.00019078,2]
[376446046,1753981839179,-727.77082838,0.00019078,2]
[376446048,1753981839189,-5297.90525658,0.00019078,2]
[376446050,1753981839198,-10035.7382739,0.00019078,2]
[376446052,1753981839207,-2346.12853276,0.00019078,2]
[376446054,1753981839217,-800.0,0.00019084,2]
[376446056,1753981839226,-545.31927109,0.00019089,2]
[376446058,1753981839235,-800.0,0.00019097,2]
[376446060,1753981839245,-800.0,0.00019105,2]
[376446062,1753981839254,-800.0,0.00019112,2]
[376446064,1753981839263,-727.77082838,0.00019147,2]
[376446066,1753981839273,-341.328,0.00019168,2]
[376446068,1753981839282,-808.33,0.00019168,3]
[376446070,1753981839291,-404.17,0.00019168,3]
[376446072,1753981839301,-202.08,0.00019168,3]
[376446074,1753981839310,-606.28,0.00019168,3]
[376446075,1753981839320,-45016.50313711,0.0001917,2]
[376446078,1753981839331,-1447.2816325,0.0001917,2]
[376446080,1753981839341,-1756.0,0.0001917,2]
[376446082,1753981839350,-1756.0,0.0001917,2]
[376446084,1753981839359,-1756.0,0.0001917,2]
[376446086,1753981839370,-1756.0,0.0001917,2]
[376446088,1753981839379,-750.62049848,0.0001917,2]
[376446090,1753981839388,-1756.0,0.0001917,2]
[376446092,1753981839398,-325.0,0.0001917,2]
[376446094,1753981839407,-325.0,0.0001917,2]
[376446117,1753981839614,-325.0,0.0001917,2]
[376446119,1753981839627,-325.0,0.0001917,2]
[376446121,1753981839638,-325.0,0.0001917,2]
[376446122,1753981839652,-325.0,0.0001917,2]
[376446125,1753981839662,-325.0,0.0001917,2]
[376446126,1753981839671,-325.0,0.0001917,2]
[376446128,1753981839681,-325.0,0.0001917,2]
[376446130,1753981839690,-325.0,0.0001917,2]
[376446132,1753981839699,-325.0,0.0001917,2]
[376446134,1753981839709,-325.0,0.0001917,2]
[376446136,1753981839718,-293.0,0.0001917,2]
[376446138,1753981839727,-173.11812932,0.0001917,2]
[376446141,1753981839737,-151.0,0.0001917,2]
[376446143,1753981839747,-1756.0,0.0001917,2]
[376446145,1753981839756,-1756.0,0.0001917,2]
[376446147,1753981839766,-1756.0,0.0001917,2]
[376446148,1753981839775,-1756.0,0.0001917,2]
[376446150,1753981839784,-500.0,0.00019173,2]
[376446152,1753981839793,-229.95221134,0.00019173,2]
[376446154,1753981839802,-500.0,0.00019173,2]